bitfinex/quotes_SOLUSD_20230104
["timestamp","ask_amount","ask_price","bid_price","bid_amount"]
[1672848859074,20.0,13.547,13.516,55.54]
[1672848862629,20.0,13.547,13.517,53.26247515]
[1672848862849,20.0,13.547,13.518,55.53]
[1672848863064,20.0,13.547,13.517,55.53]
[1672848863276,20.0,13.547,13.515,20.0]
[1672848863277,20.0,13.547,13.516,55.54]
[1672848865070,20.0,13.547,13.496,123.70410742]
[1672848865071,224.7,13.545,13.496,123.70410742]
[1672848865283,224.7,13.543,13.498,120.39771855]
[1672848865601,224.7,13.541,13.496,123.70410742]
[1672848865914,224.7,13.539,13.498,120.39771855]
[1672848866125,224.7,13.537,13.497,129.56962616]
[1672848866317,75.45,13.538,13.497,129.56962616]
[1672848866318,224.7,13.535,13.497,129.56962616]
[1672848866521,20.0,13.534,13.497,129.56962616]
[1672848866736,20.0,13.534,13.498,55.61]
[1672848866966,20.0,13.534,13.496,167.9865]
[1672848867281,29.568382,13.548,13.5,121.5906537]
[1672848867468,29.568382,13.548,13.503,224.7]
[1672848867682,29.568382,13.548,13.513,224.7]
[1672848867893,210.57099021,13.574,13.515,224.7]
[1672848867894,31.2329448,13.551,13.515,224.7]
[1672848868101,31.2329448,13.551,13.516,280.24]
[1672848868313,31.2329448,13.551,13.516,337.8379298]
[1672848868539,31.2329448,13.551,13.518,224.7]
[1672848868754,31.2329448,13.551,13.519,75.53]
[1672848868957,60.7886118,13.551,13.519,55.53]
[1672848869169,60.7886118,13.551,13.52,20.0]
[1672848869486,60.7886118,13.551,13.521,55.52]
[1672848869697,60.7886118,13.551,13.522,20.0]
[1672848869899,60.7886118,13.551,13.523,55.51]
[1672848870112,60.7886118,13.551,13.524,20.0]
[1672848870321,60.7886118,13.551,13.525,55.5]
[1672848870536,60.7886118,13.551,13.52,55.52]
[1672848870732,60.7886118,13.551,13.519,55.53]
[1672848871157,20.0,13.55,13.519,55.53]
[1672848871578,20.0,13.55,13.519,108.74153246]
[1672848872630,55.4,13.549,13.519,108.74153246]
[1672848872840,20.0,13.548,13.519,55.53]
[1672848873051,55.41,13.547,13.519,55.53]
[1672848873260,20.0,13.546,13.519,55.53]
[1672848873480,55.42,13.545,13.519,55.53]
[1672848873698,20.0,13.544,13.519,55.53]
[1672848874098,60.7886118,13.551,13.519,55.53]
[1672848874099,55.43,13.543,13.519,55.53]
[1672848874317,20.0,13.542,13.517,55.53]
[1672848874534,55.43,13.541,13.516,55.54]
[1672848874737,20.0,13.54,13.516,55.54]
[1672848875147,55.44,13.539,13.516,55.54]
[1672848875464,55.4,13.549,13.516,55.54]
[1672848875675,60.7886118,13.551,13.516,110.92369908]
[1672848875676,55.4,13.55,13.516,110.92369908]
[1672848876429,280.1,13.55,13.516,110.92369908]
[1672848877576,20.0,13.549,13.516,110.92369908]
[1672848878114,60.7886118,13.551,13.517,149.28891885]
[1672848878300,60.7886118,13.551,13.518,181.24118503]
[1672848878516,60.7886118,13.551,13.525,38.72140066]
[1672848878726,60.7886118,13.551,13.526,55.5]
[1672848878941,60.7886118,13.551,13.526,280.2]
[1672848879142,31.2329448,13.551,13.533,38.72140066]
[1672848879353,31.2329448,13.551,13.534,75.46]
[1672848880082,31.2329448,13.551,13.534,55.46]
[1672848880319,20.0,13.55,13.529,55.48]
[1672848880500,20.0,13.55,13.527,94.21140066]
[1672848882188,113.9903,13.578,13.527,94.21140066]
[1672848882189,215.64237418,13.596,13.529,38.72140066]
[1672848882399,224.7,13.602,13.528,54.46567117]
[1672848882400,116.6931373,13.595,13.56,38.72140066]
[1672848882621,116.6931373,13.595,13.573,38.72140066]
[1672848882830,116.6931373,13.595,13.574,55.3]
[1672848882831,29.449202,13.589,13.574,55.3]
[1672848883142,29.449202,13.589,13.574,67.94038341]
[1672848883343,29.449202,13.589,13.575,55.3]
[1672848883556,29.449202,13.589,13.572,96.63355466]
[1672848883784,29.449202,13.589,13.564,55.34]
[1672848883993,55.24,13.588,13.561,55.35]
[1672848884190,29.449202,13.589,13.561,55.35]
[1672848884407,16.7023393,13.595,13.564,38.72140066]
[1672848884618,16.7023393,13.595,13.565,75.34]
[1672848884826,29.466616,13.589,13.565,75.34]
[1672848885557,29.466616,13.589,13.565,55.34]
[1672848885772,29.466616,13.589,13.561,55.35]
[1672848886518,55.24,13.588,13.561,55.35]
[1672848886706,75.24,13.588,13.561,55.35]
[1672848891551,75.24,13.588,13.561,55.189251]
[1672848891763,29.466616,13.589,13.561,55.189251]
[1672848891976,29.466616,13.589,13.562,20.0]
[1672848892297,29.466616,13.589,13.563,55.34]
[1672848892499,29.466616,13.589,13.564,20.0]
[1672848892717,48.68817015,13.589,13.565,55.34]
[1672848893245,20.0,13.588,13.565,55.34]
[1672848893451,279.95,13.587,13.561,55.35]
[1672848893668,20.0,13.586,13.56,360.84207379]
[1672848893851,55.26,13.585,13.561,55.35]
[1672848894189,20.0,13.584,13.561,55.35]
[1672848894395,7.32213177,13.584,13.561,55.35]
[1672848894611,29.466616,13.589,13.561,55.35]
[1672848895024,51.87,13.598,13.561,55.35]
[1672848895364,77.41368592,13.598,13.561,55.35]
[1672848895533,224.7,13.614,13.561,55.35]
[1672848895534,7.32213177,13.597,13.561,77.1311836]
[1672848895749,66.16737645,13.602,13.562,124.22424742]
[1672848895975,29.449184,13.598,13.564,224.7]
[1672848896166,29.449184,13.598,13.565,75.34]
[1672848896378,29.449184,13.598,13.565,201.34543102]
[1672848896593,29.449184,13.598,13.567,126.77796789]
[1672848896807,29.449184,13.598,13.568,75.32]
[1672848897012,29.449184,13.598,13.569,224.7]
[1672848897227,29.449184,13.598,13.571,224.7]
[1672848897559,112.0101364,13.599,13.573,224.7]
[1672848897748,29.426813,13.598,13.575,224.7]
[1672848897952,29.426813,13.598,13.576,75.29]
[1672848898168,29.426813,13.598,13.576,321.7711836]
[1672848898495,112.0101364,13.599,13.577,295.85633706]
[1672848898711,87.0101364,13.599,13.578,92.28]
[1672848898927,46.9458223,13.602,13.578,92.28]
[1672848898928,133.95595871,13.602,13.6,146.83332]
[1672848899139,29.405434,13.614,13.603,224.7]
[1672848899320,29.405434,13.614,13.602,149.72363976]
[1672848899321,207.52139914,13.605,13.604,55.18]
[1672848899535,29.405434,13.614,13.606,1.60038684]
[1672848899750,14.405434,13.614,13.607,55.17]
[1672848900067,513.04586704,13.645,13.608,76.14007117]
[1672848900262,503.04586704,13.645,13.614,14.405434]
[1672848900477,63.3711576,13.648,13.617,14.405434]
[1672848900478,332.52983627,13.647,13.617,14.405434]
[1672848900694,332.52983627,13.647,13.621,14.405434]
[1672848900900,262.96652132,13.648,13.618,75.12]
[1672848900901,29.33645,13.645,13.618,52.18099917]
[1672848901114,29.33645,13.645,13.616,55.13]
[1672848901115,51.0,13.644,13.608,112.9825]
[1672848901333,29.33645,13.645,13.616,174.01837166]
[1672848901535,29.33645,13.645,13.617,197.22970602]
[1672848901761,29.33645,13.645,13.617,207.08088962]
[1672848901951,29.33645,13.645,13.618,131.95088962]
[1672848902161,51.0,13.644,13.618,110.16970602]
[1672848902375,51.0,13.644,13.612,55.06229968]
[1672848902601,51.0,13.644,13.608,112.9825]
[1672848902910,51.0,13.644,13.603,55.18]
[1672848903121,51.0,13.644,13.601,170.952]
[1672848903338,51.0,13.644,13.601,115.762]
[1672848903647,20.0,13.643,13.601,115.762]
[1672848903849,55.02,13.642,13.601,115.762]
[1672848904047,80.51728762,13.642,13.601,115.762]
[1672848904263,20.0,13.641,13.601,115.762]
[1672848904472,54.53,13.64,13.601,115.762]
[1672848904692,20.0,13.639,13.601,115.762]
[1672848904899,55.04,13.638,13.596,602.52401799]
[1672848905112,20.0,13.637,13.596,602.52401799]
[1672848905329,55.05,13.636,13.596,602.52401799]
[1672848905544,20.0,13.635,13.596,602.52401799]
[1672848905856,55.06,13.634,13.596,602.52401799]
[1672848906050,20.0,13.633,13.596,602.52401799]
[1672848906263,20.0,13.633,13.588,657.76401799]
[1672848906264,55.06,13.632,13.588,657.76401799]
[1672848906591,20.0,13.631,13.595,55.21]
[1672848906804,55.07,13.63,13.595,55.21]
[1672848907122,20.0,13.629,13.602,149.34738976]
[1672848907325,55.08,13.628,13.602,148.97200976]
[1672848907539,20.0,13.627,13.602,148.97200976]
[1672848907849,55.09,13.626,13.602,148.97200976]
[1672848908060,20.0,13.625,13.602,148.97200976]
[1672848908256,137.06912816,13.627,13.603,55.18]
[1672848909739,7.58161129,13.626,13.603,54.68]
[1672848909955,144.65073945,13.626,13.603,54.68]
[1672848910284,137.06912816,13.626,13.603,54.68]
[1672848910983,68.84912816,13.626,13.604,20.0]
[1672848911197,68.84912816,13.626,13.605,279.87]
[1672848911420,68.84912816,13.626,13.606,20.0]
[1672848911620,250.4,13.647,13.63,1.6117904]
[1672848911837,34.66365899,13.644,13.63,1.6117904]
[1672848912056,55.02,13.643,13.63,1.6117904]
[1672848912471,13.88889651,13.642,13.63,1.6117904]
[1672848912686,224.7,13.64,13.604,55.18]
[1672848912895,279.74,13.639,13.604,55.18]
[1672848913116,285.94543502,13.639,13.604,55.18]
[1672848913304,280.84168546,13.638,13.604,55.18]
[1672848913513,279.74,13.637,13.604,55.18]
[1672848913843,56.14168546,13.636,13.604,55.18]
[1672848914040,55.05,13.635,13.604,55.18]
[1672848914249,20.0,13.634,13.604,55.18]
[1672848914562,55.06,13.633,13.604,55.18]
[1672848914776,20.0,13.632,13.604,55.18]
[1672848914987,55.07,13.631,13.604,55.18]
[1672848915206,20.0,13.63,13.604,55.18]
[1672848915415,20.0,13.63,13.603,55.18]
[1672848915416,279.78,13.629,13.603,55.18]
[1672848915739,20.0,13.628,13.602,204.16200976]
[1672848915944,55.08,13.627,13.602,204.16200976]
[1672848916266,244.7,13.626,13.602,148.97200976]
[1672848916569,55.09,13.625,13.602,148.97200976]
[1672848916993,67.50087004,13.625,13.603,55.18]
[1672848917192,55.09,13.625,13.603,55.18]
[1672848917397,12.41087004,13.624,13.603,55.18]
[1672848919392,12.41087004,13.624,13.602,148.97200976]
[1672848919602,12.41087004,13.624,13.603,55.18]
[1672848919817,12.41087004,13.624,13.602,204.16200976]
[1672848920870,224.7,13.622,13.602,148.97200976]
[1672848921078,12.41087004,13.624,13.602,148.97200976]
[1672848921079,224.7,13.62,13.602,148.97200976]
[1672848921288,224.7,13.62,13.6,146.83332]
[1672848921289,224.7,13.618,13.6,146.83332]
[1672848921509,224.7,13.616,13.6,146.83332]
[1672848921845,299.83,13.615,13.6,146.83332]
[1672848922152,20.0,13.614,13.6,146.83332]
[1672848922337,279.84,13.613,13.6,146.83332]
[1672848922552,13.81926955,13.614,13.6,64.2395775]
[1672848922775,56.50694895,13.641,13.6,64.2395775]
[1672848922984,68.84926955,13.64,13.6,64.2395775]
[1672848923192,56.50694895,13.639,13.6,64.2395775]
[1672848923507,224.7,13.636,13.6,64.2395775]
[1672848923699,224.7,13.632,13.6,64.2395775]
[1672848923912,224.7,13.63,13.6,64.2395775]
[1672848924143,224.7,13.626,13.6,64.2395775]
[1672848924474,224.7,13.622,13.6,64.2395775]
[1672848924777,224.7,13.62,13.6,64.2395775]
[1672848924967,224.7,13.618,13.6,64.2395775]
[1672848925177,224.7,13.616,13.6,64.2395775]
[1672848925383,224.7,13.614,13.6,64.2395775]
[1672848925606,224.7,13.612,13.6,64.2395775]
[1672848925818,20.0,13.611,13.6,64.2395775]
[1672848926441,20.0,13.614,13.6,64.2395775]
[1672848926862,17.20438289,13.621,13.6,64.2395775]
[1672848927071,224.7,13.619,13.6,64.2395775]
[1672848927288,7.32441141,13.613,13.6,64.2395775]
[1672848927505,75.15,13.612,13.6,64.2395775]
[1672848927709,92.35438289,13.612,13.6,64.2395775]
[1672848927930,7.32441141,13.611,13.6,64.2395775]
[1672848928144,20.0,13.61,13.6,64.2395775]
[1672848928464,241.08027969,13.634,13.6,64.2395775]
[1672848928465,224.7,13.631,13.601,41.7811836]
[1672848928650,99.43185309,13.63,13.602,55.19]
[1672848928860,32.58061115,13.637,13.602,55.19]
[1672848929073,7.32441141,13.629,13.603,114.6282]
[1672848929284,7.32441141,13.629,13.604,55.18]
[1672848929495,15.97194435,13.631,13.604,55.18]
[1672848929712,71.6786668,13.63,13.604,55.18]
[1672848929913,16.6086668,13.63,13.604,55.18]
[1672848930124,15.97194435,13.63,13.604,55.18]
[1672848930333,7.32441141,13.629,13.604,55.18]
[1672848930760,232.02441141,13.629,13.604,55.18]
[1672848930974,269.38195528,13.628,13.602,55.19]
[1672848931187,224.7,13.628,13.602,55.19]
[1672848931385,16.6086668,13.627,13.602,55.19]
[1672848931594,224.7,13.626,13.602,55.19]
[1672848932118,16.6086668,13.625,13.602,55.19]
[1672848932661,15.97194435,13.625,13.603,21.7811836]
[1672848932880,55.03,13.64,13.604,55.18]
[1672848933064,58.07716966,13.639,13.604,55.18]
[1672848933272,224.7,13.637,13.603,21.7811836]
[1672848933478,224.7,13.635,13.604,55.18]
[1672848933705,224.7,13.633,13.602,55.19]
[1672848933917,224.7,13.631,13.602,55.19]
[1672848934130,224.7,13.629,13.602,55.19]
[1672848934343,20.0,13.628,13.602,55.19]
[1672848934659,47.60178382,13.628,13.602,55.19]
[1672848934845,20.0,13.628,13.602,55.19]
[1672848935055,47.60178382,13.629,13.602,55.19]
[1672848935265,224.7,13.628,13.602,55.19]
[1672848935472,20.0,13.627,13.602,55.19]
[1672848935697,20.0,13.629,13.602,55.19]
[1672848936101,75.02,13.642,13.602,55.19]
[1672848936635,232.02441141,13.641,13.602,55.19]
[1672848936962,224.7,13.637,13.602,76.9711836]
[1672848937174,271.82631503,13.635,13.602,55.19]
[1672848937384,224.7,13.631,13.602,55.19]
[1672848937575,20.0,13.63,13.602,55.19]
[1672848937791,27.32441141,13.63,13.602,55.19]
[1672848938001,224.7,13.628,13.602,55.19]
[1672848938221,20.0,13.627,13.602,55.19]
[1672848938962,232.02441141,13.626,13.602,55.19]
[1672848939180,224.7,13.624,13.602,55.19]
[1672848939380,75.09,13.625,13.601,165.044]
[1672848939381,224.7,13.622,13.601,165.044]
[1672848939584,224.7,13.622,13.601,109.854]
[1672848939585,20.0,13.621,13.601,109.854]
[1672848940640,224.7,13.621,13.601,109.854]
[1672848940852,20.0,13.62,13.601,109.854]
[1672848941061,47.67104008,13.62,13.601,109.854]
[1672848941271,54.99545149,13.62,13.601,109.854]
[1672848941495,20.0,13.62,13.601,109.854]
[1672848941801,76.28101446,13.642,13.601,109.854]
[1672848941995,20.88151542,13.622,13.601,109.854]
[1672848942205,20.0,13.621,13.601,109.854]
[1672848942424,20.0,13.621,13.601,165.044]
[1672848942638,20.0,13.622,13.601,165.044]
[1672848942850,7.32441141,13.62,13.601,165.044]
[1672848943053,7.32441141,13.62,13.601,109.854]
[1672848943054,20.0,13.619,13.601,109.854]
[1672848943486,245.58151542,13.618,13.601,109.854]
[1672848943675,20.0,13.617,13.6,64.2395775]
[1672848944097,20.0,13.617,13.6,63.2395775]
[1672848944309,10.44075771,13.616,13.6,63.2395775]
[1672848944730,20.0,13.615,13.6,63.2395775]
[1672848945148,224.7,13.613,13.6,63.2395775]
[1672848945356,224.7,13.611,13.6,63.2395775]
[1672848945590,20.0,13.61,13.6,63.2395775]
[1672848945801,27.12003808,13.61,13.6,63.2395775]
[1672848946012,20.0,13.61,13.6,63.2395775]
[1672848946224,17.59542392,13.609,13.6,63.2395775]
[1672848946528,17.59542392,13.609,13.585,644.23000278]
[1672848946529,224.7,13.607,13.585,644.23000278]
[1672848946750,10.47538584,13.591,13.585,644.23000278]
[1672848947156,267.09641893,13.603,13.585,644.23000278]
[1672848947366,10.47538584,13.604,13.586,55.25]
[1672848947590,55.08,13.627,13.586,55.25]
[1672848947794,56.05220316,13.626,13.587,118.6292]
[1672848948004,55.09,13.625,13.588,55.24]
[1672848948211,17.59542392,13.625,13.587,118.6292]
[1672848948536,224.7,13.623,13.587,118.6292]
[1672848948751,224.7,13.621,13.587,173.8792]
[1672848949059,224.7,13.619,13.587,173.8792]
[1672848949256,224.7,13.617,13.587,173.8792]
[1672848949458,224.7,13.615,13.587,173.8792]
[1672848949686,224.7,13.613,13.587,173.8792]
[1672848949889,224.7,13.611,13.587,173.8792]
[1672848950100,20.0,13.61,13.587,173.8792]
[1672848950518,14.01241961,13.609,13.587,173.8792]
[1672848950939,2.81426815,13.609,13.588,20.0]
[1672848951254,16.82668776,13.609,13.589,55.24]
[1672848951451,16.82668776,13.609,13.59,20.0]
[1672848951663,224.7,13.629,13.591,55.23]
[1672848951875,224.7,13.627,13.592,20.0]
[1672848952099,224.7,13.625,13.593,55.22]
[1672848952312,224.7,13.623,13.593,55.22]
[1672848952521,224.7,13.619,13.593,55.22]
[1672848953131,38.06832034,13.618,13.593,55.22]
[1672848953355,224.7,13.617,13.593,55.22]
[1672848953785,18.06832034,13.616,13.593,55.22]
[1672848954001,224.7,13.614,13.593,55.22]
[1672848954191,224.7,13.612,13.587,173.8792]
[1672848954407,224.7,13.61,13.587,173.8792]
[1672848954610,20.0,13.609,13.587,173.8792]
[1672848954938,224.7,13.607,13.577,55.29]
[1672848955150,224.7,13.605,13.577,113.101]
[1672848955362,299.88,13.604,13.578,55.28]
[1672848955574,20.0,13.603,13.581,55.27]
[1672848955785,26.9191783,13.603,13.578,55.28]
[1672848955992,279.89,13.602,13.577,113.101]
[1672848956201,19.5,13.601,13.577,113.101]
[1672848956411,224.7,13.599,13.577,113.101]
[1672848956608,224.7,13.597,13.577,113.101]
[1672848957147,18.06832034,13.596,13.577,113.101]
[1672848957763,24.98749864,13.596,13.574,55.3]
[1672848957973,24.98749864,13.596,13.572,644.13513053]
[1672848957974,224.7,13.594,13.572,644.13513053]
[1672848958203,224.7,13.592,13.572,644.13513053]
[1672848958392,20.0,13.591,13.567,168.9291]
[1672848958927,0.96806666,13.59,13.567,168.9291]
[1672848959340,11.96816924,13.59,13.567,168.9291]
[1672848959545,20.0,13.589,13.567,168.9291]
[1672848959968,224.7,13.587,13.567,168.9291]
[1672848960178,224.7,13.587,13.567,113.5991]
[1672848960808,224.7,13.584,13.56,55.36]
[1672848961237,224.7,13.582,13.56,55.36]
[1672848961450,74.3255362,13.583,13.56,55.36]
[1672848961451,299.0255362,13.581,13.56,55.36]
[1672848961771,224.7,13.579,13.559,112.8788]
[1672848962090,279.0255362,13.576,13.559,112.8788]
[1672848962496,6.9191783,13.575,13.553,110.702]
[1672848962703,224.7,13.573,13.553,109.202]
[1672848962915,224.7,13.571,13.553,109.202]
[1672848963127,129.6355362,13.572,13.552,112.7683]
[1672848963128,224.7,13.569,13.552,112.7683]
[1672848963443,279.0255362,13.566,13.552,112.7683]
[1672848963655,73.02158344,13.568,13.546,55.41]
[1672848963851,20.0,13.567,13.546,55.41]
[1672848964069,33.11843239,13.567,13.546,55.41]
[1672848964280,55.2,13.598,13.546,55.41]
[1672848964281,59.78480407,13.597,13.546,55.41]
[1672848964486,75.21,13.596,13.546,55.41]
[1672848964826,224.7,13.592,13.546,55.41]
[1672848965012,224.7,13.588,13.546,55.41]
[1672848965223,75.23,13.591,13.546,55.41]
[1672848965224,224.7,13.584,13.546,55.41]
[1672848965553,224.7,13.58,13.545,112.7683]
[1672848965761,224.7,13.578,13.546,55.41]
[1672848965971,224.7,13.576,13.546,55.41]
[1672848966170,224.7,13.574,13.546,55.41]
[1672848966381,224.7,13.572,13.546,55.41]
[1672848966597,224.7,13.57,13.546,55.41]
[1672848966821,20.0,13.569,13.546,55.41]
[1672848967240,20.0,13.569,13.545,112.7683]
[1672848967241,224.7,13.567,13.545,112.7683]
[1672848967457,224.7,13.565,13.545,112.7683]
[1672848967765,224.7,13.563,13.545,112.7683]
[1672848967976,300.05,13.562,13.545,112.7683]
[1672848968190,20.0,13.561,13.545,112.7683]
[1672848968404,20.0,13.561,13.538,232.4816]
[1672848968822,6.727878,13.56,13.538,232.4816]
[1672848969038,6.727878,13.56,13.532,55.47]
[1672848969039,224.7,13.558,13.532,55.47]
[1672848969246,75.36,13.559,13.529,110.6826]
[1672848969247,224.7,13.556,13.529,110.6826]
[1672848969461,55.38,13.555,13.529,110.6826]
[1672848969672,55.37,13.558,13.532,55.47]
[1672848969874,40.73983298,13.557,13.532,55.47]
[1672848970306,55.28,13.58,13.532,55.47]
[1672848970502,20.73983298,13.556,13.533,20.0]
[1672848970713,20.73983298,13.556,13.534,55.46]
[1672848970923,20.73983298,13.556,13.535,20.0]
[1672848971235,20.73983298,13.556,13.536,55.46]
[1672848971444,55.3,13.573,13.536,55.46]
[1672848971445,55.31,13.571,13.537,20.0]
[1672848971776,20.0,13.57,13.538,55.45]
[1672848972091,0.94733298,13.569,13.539,20.0]
[1672848972300,0.94733298,13.569,13.54,55.44]
[1672848972505,0.94733298,13.569,13.541,20.0]
[1672848972724,0.94733298,13.569,13.542,55.43]
[1672848973764,55.32,13.568,13.542,55.43]
[1672848974080,55.31,13.571,13.542,55.43]
[1672848974282,0.94733298,13.567,13.542,55.43]
[1672848975546,0.94733298,13.567,13.539,113.892]
[1672848975547,6.727878,13.566,13.54,55.44]
[1672848975761,20.0,13.574,13.54,55.44]
[1672848975974,6.5386433,13.571,13.54,55.44]
[1672848976294,75.32,13.57,13.54,55.44]
[1672848976503,20.0,13.57,13.54,55.44]
[1672848976707,55.3,13.573,13.541,19.0]
[1672848976708,20.0,13.572,13.541,19.0]
[1672848976919,55.31,13.571,13.542,55.43]
[1672848977125,271.54886569,13.594,13.542,55.43]
[1672848977332,47.5931,13.594,13.542,55.43]
[1672848977541,43.94254269,13.586,13.542,55.43]
[1672848977760,279.96,13.585,13.542,55.43]
[1672848977975,286.4986433,13.585,13.542,55.43]
[1672848978176,17.65267128,13.584,13.543,20.0]
[1672848978508,224.7,13.582,13.544,55.42]
[1672848978707,224.7,13.58,13.544,55.42]
[1672848978918,224.7,13.578,13.544,55.42]
[1672848979110,224.7,13.576,13.544,55.42]
[1672848979325,224.7,13.574,13.544,55.42]
[1672848979536,75.3,13.575,13.544,55.42]
[1672848979537,224.7,13.572,13.544,55.42]
[1672848979745,20.0,13.571,13.544,55.42]
[1672848980388,75.31,13.571,13.544,55.42]
[1672848980610,20.0,13.571,13.544,55.42]
[1672848980806,224.7,13.584,13.545,20.0]
[1672848981020,224.7,13.582,13.546,55.41]
[1672848981215,224.7,13.58,13.547,20.0]
[1672848981542,224.7,13.578,13.548,55.41]
[1672848981774,20.0,13.577,13.549,20.0]
[1672848981997,224.7,13.578,13.55,55.4]
[1672848982298,224.7,13.578,13.551,20.0]
[1672848982508,224.7,13.577,13.552,55.39]
[1672848982723,224.7,13.577,13.553,20.0]
[1672848982931,224.7,13.577,13.554,55.38]
[1672848983549,11.11402798,13.583,13.554,55.38]
[1672848983878,224.7,13.585,13.555,114.5774]
[1672848983879,20.0,13.582,13.555,114.5774]
[1672848984197,20.0,13.582,13.556,55.37]
[1672848984394,20.0,13.583,13.556,55.37]
[1672848985451,2.3978,13.601,13.557,20.0]
[1672848985664,2.3978,13.601,13.558,55.37]
[1672848985981,11.11402798,13.59,13.559,20.0]
[1672848986183,11.11402798,13.59,13.56,55.36]
[1672848986393,224.7,13.588,13.556,55.37]
[1672848986595,61.7786433,13.589,13.556,55.37]
[1672848986596,224.7,13.586,13.556,55.37]
[1672848986807,224.7,13.584,13.556,55.37]
[1672848987016,224.7,13.582,13.556,55.37]
[1672848987234,55.27,13.581,13.556,55.37]
[1672848987432,20.0,13.58,13.556,55.37]
[1672848987868,224.7,13.578,13.555,114.5774]
[1672848988082,224.7,13.576,13.555,114.5774]
[1672848988289,224.7,13.574,13.555,114.5774]
[1672848988490,37.65267128,13.577,13.555,114.5774]
[1672848988491,55.29,13.576,13.555,114.5774]
[1672848988912,299.99,13.577,13.555,114.5774]
[1672848989120,251.2386433,13.577,13.555,114.5774]
[1672848989330,224.7,13.575,13.555,114.5774]
[1672848990080,26.5386433,13.577,13.555,114.5774]
[1672848990396,26.5386433,13.577,13.553,55.39]
[1672848990603,224.7,13.575,13.552,112.4997]
[1672848990806,224.7,13.573,13.552,112.4997]
[1672848991023,224.7,13.571,13.552,112.4997]
[1672848991427,20.0,13.57,13.552,112.4997]
[1672848991638,20.0,13.572,13.552,112.4997]
[1672848992064,6.5386433,13.575,13.552,112.4997]
[1672848992273,224.7,13.573,13.552,112.4997]
[1672848992480,224.7,13.571,13.552,112.4997]
[1672848992692,20.0,13.57,13.552,112.4997]
[1672848992903,280.02,13.569,13.552,112.4997]
[1672848993109,55.32,13.569,13.552,112.4997]
[1672848993322,330.56372302,13.593,13.552,112.4997]
[1672848993323,55.22,13.593,13.552,112.4997]
[1672848993647,40.99164213,13.592,13.553,55.39]
[1672848993969,61.7686433,13.591,13.553,55.39]
[1672848994279,231.2386433,13.59,13.553,55.39]
[1672848994491,224.7,13.588,13.552,112.4997]
[1672848994700,224.7,13.586,13.552,112.4997]
[1672848994907,224.7,13.584,13.552,112.4997]
[1672848995110,224.7,13.582,13.552,112.4997]
[1672848995316,224.7,13.58,13.552,112.4997]
[1672848995527,224.7,13.578,13.552,112.4997]
[1672848995741,224.7,13.576,13.552,112.4997]
[1672848995947,224.7,13.574,13.552,112.4997]
[1672848996158,224.7,13.572,13.552,112.4997]
[1672848996485,75.3,13.573,13.539,55.44]
[1672848996486,224.7,13.57,13.539,55.44]